{"text_format":"3","workbook":"xlsx","n_sheets":4,"sheets":["Formulário de ofertas","Dados do gráfico","Divisão de custos","Resumo dos custos de ofertas"],"not_rendered":{"charts":1,"images":2,"defined_names":11},"read":"whole","date_system":"1900"}

{"sheet":"Formulário de ofertas","index":0,"n_rows":21,"n_cols":6,"rows_kept":21,"merged":[[0,1,0,4],[1,1,1,2],[1,4,1,5],[7,1,8,1],[7,2,8,2],[10,1,10,5],[12,1,12,5],[14,1,14,5],[15,1,15,2],[15,4,15,5],[16,1,16,2],[16,4,16,5],[18,1,18,5],[19,1,19,2],[19,4,19,5],[20,1,20,2],[20,4,20,5]]}
[null,"Formulário de Oferta de Construção"]
[null,"Informações do proprietário",null,null,"Informações do empreiteiro"]
[null,"Nome","Insira o nome do proprietário nesta célula",null,"Empresa","Insira o nome da Empreiteira nesta célula"]
[null,"Endereço","Insira o endereço do proprietário nesta célula",null,"Nome","Insira o nome do empreiteiro nesta célula"]
[null,"Cidade, Estado, CEP","Insira a cidade, o estado e o CEP do proprietário nesta célula",null,"Endereço","Insira o endereço do empreiteiro nesta célula"]
[null,"Telefone","Insira o telefone do proprietário nesta célula",null,"Cidade, Estado, CEP","Insira a cidade, o estado e o CEP do empreiteiro nesta célula"]
[null,"Email","Insira o endereço de email do proprietário nesta célula",null,"Telefone","Insira o telefone do empreiteiro nesta célula"]
[null,"Nome do projeto","Insira o nome do projeto nesta célula",null,"Email","Insira o endereço de email do empreiteiro nesta célula "]
[{"$nulls":4},"Data de conclusão","Insira a data de conclusão nesta célula"]
[null,"Escopo do trabalho"]
[null,"O escopo do projeto de trabalho fica aqui. Digite todas as especificações que desejar. \n\nTexto de exemplo: Esta será uma simulação de projeto de construção de um grande conjunto de escadas. Usaremos somente madeira de 2x4 e 2x8, além de suportes com tirantes, para construir a estrutura. As escadas serão cortadas no material de 2x4. Serão usados parafusos de tamanho a partir de 2”. Serão usados pregos com custo a partir de 10 centavos de dólar. O peso projetado deverá suportar um mínimo de 500 libras por degrau. Os degraus serão nivelados com o nível da casa. Um estribo será preso à casa. O empreiteiro cuidará da limpeza."]
[null,"Não incluídos"]
[null,"Os detalhes do projeto que não estão incluídos ficam aqui. Digite tudo o que não está incluído nesta oferta. \n\nTexto de exemplo: Nenhum corrimão será instalado. O piso deverá ser preparado pelo proprietário. As escadas serão pintadas pelo proprietário."]
[null,"Proposta da empresa"]
[null,"Aqui vai a proposta da empresa. Digite uma visão geral da proposta, incluindo quem está propondo o serviço, a data da conclusão prevista e o valor da proposta.\n\nTexto de exemplo: Nós, Nome da Empresa, propomos o escopo de trabalho descrito acima, a ser executado até a Data de Conclusão pelo valor de Valor Total."]
[]
[null,"Enviado por (Representante de Empresa)",null,null,"Data"]
[null,"Aceitação do proprietário"]
[null,"Aqui vai a aceitação do proprietário. Digite o nome do proprietário em uma declaração de confirmação que inclui a data de conclusão e o valor total mencionado na proposta da empresa. \n\nTexto de exemplo: Nós, Nome do Proprietário, aceitamos o escopo de trabalho descrito acima, a ser executado até a Data de Conclusão pelo valor de Valor Total."]
[]
[null,"Enviado por (proprietário da casa ou representante autorizado)",null,null,"Data"]

{"sheet":"Dados do gráfico","index":1,"n_rows":7,"n_cols":3,"rows_kept":7,"hidden":true}
[]
[null,null,"Total"]
[null,{"$f":"INDEX(ItemsdeOferta[#Data],MATCH(1,ItemsdeOferta[Custos comparados],0),2)","v":"Custos de mão-de-obra"},{"$f":"INDEX(ItemsdeOferta[#Data],MATCH(1,ItemsdeOferta[Custos comparados],0),4)","v":200}]
[null,{"$f":"INDEX(ItemsdeOferta[#Data],MATCH(2,ItemsdeOferta[Custos comparados],0),2)","v":"madeira 2 x 4 x 10"},{"$f":"INDEX(ItemsdeOferta[#Data],MATCH(2,ItemsdeOferta[Custos comparados],0),4)","v":99.39999999999999}]
[null,{"$f":"INDEX(ItemsdeOferta[#Data],MATCH(3,ItemsdeOferta[Custos comparados],0),2)","v":"Suportes com tirantes"},{"$f":"INDEX(ItemsdeOferta[#Data],MATCH(3,ItemsdeOferta[Custos comparados],0),4)","v":74.7}]
[null,{"$f":"INDEX(ItemsdeOferta[#Data],MATCH(4,ItemsdeOferta[Custos comparados],0),2)","v":"madeira 2 x 8 x 10"},{"$f":"INDEX(ItemsdeOferta[#Data],MATCH(4,ItemsdeOferta[Custos comparados],0),4)","v":33.75}]
[null,{"$f":"INDEX(ItemsdeOferta[#Data],MATCH(5,ItemsdeOferta[Custos comparados],0),2)","v":"Par de luvas, de couro"},{"$f":"INDEX(ItemsdeOferta[#Data],MATCH(5,ItemsdeOferta[Custos comparados],0),4)","v":15.5}]

{"sheet":"Divisão de custos","index":2,"n_rows":14,"n_cols":6,"rows_kept":14,"merged":[[0,1,0,4],[1,1,1,4]]}
[null,"Divisão de custos",{"$nulls":3}," "]
[null,"Lista de materiais e custos"]
[null,"Qtd.","Descrição","Custo","Total","Custos comparados"]
[null,5,"madeira 2 x 8 x 10",{"v":6.75,"d":"R$ 6.75"},{"$f":"IFERROR(ItemsdeOferta[[#This Row],[Custo]]*ItemsdeOferta[[#This Row],[Qtd.]], \"\")","v":{"v":33.75,"d":"R$ 33.75"}},{"$f":"_xlfn.RANK.EQ(ItemsdeOferta[[#This Row],[Total]],ItemsdeOferta[Total])","v":4}]
[null,20,"madeira 2 x 4 x 10",{"v":4.97,"d":"R$ 4.97"},{"$f":"IFERROR(ItemsdeOferta[[#This Row],[Custo]]*ItemsdeOferta[[#This Row],[Qtd.]], \"\")","v":{"v":99.39999999999999,"d":"R$ 99.40"}},{"$f":"_xlfn.RANK.EQ(ItemsdeOferta[[#This Row],[Total]],ItemsdeOferta[Total])","v":2}]
[null,30,"Suportes com tirantes",{"v":2.49,"d":"R$ 2.49"},{"$f":"IFERROR(ItemsdeOferta[[#This Row],[Custo]]*ItemsdeOferta[[#This Row],[Qtd.]], \"\")","v":{"v":74.7,"d":"R$ 74.70"}},{"$f":"_xlfn.RANK.EQ(ItemsdeOferta[[#This Row],[Total]],ItemsdeOferta[Total])","v":3}]
[null,2,"Caixa de parafusos, 2 pol.",{"v":6.67,"d":"R$ 6.67"},{"$f":"IFERROR(ItemsdeOferta[[#This Row],[Custo]]*ItemsdeOferta[[#This Row],[Qtd.]], \"\")","v":{"v":13.34,"d":"R$ 13.34"}},{"$f":"_xlfn.RANK.EQ(ItemsdeOferta[[#This Row],[Total]],ItemsdeOferta[Total])","v":6}]
[null,2,"Caixa de pregos, 10 centavos",{"v":3.25,"d":"R$ 3.25"},{"$f":"IFERROR(ItemsdeOferta[[#This Row],[Custo]]*ItemsdeOferta[[#This Row],[Qtd.]], \"\")","v":{"v":6.5,"d":"R$ 6.50"}},{"$f":"_xlfn.RANK.EQ(ItemsdeOferta[[#This Row],[Total]],ItemsdeOferta[Total])","v":7}]
[null,2,"Par de luvas, de couro",{"v":7.75,"d":"R$ 7.75"},{"$f":"IFERROR(ItemsdeOferta[[#This Row],[Custo]]*ItemsdeOferta[[#This Row],[Qtd.]], \"\")","v":{"v":15.5,"d":"R$ 15.50"}},{"$f":"_xlfn.RANK.EQ(ItemsdeOferta[[#This Row],[Total]],ItemsdeOferta[Total])","v":5}]
[null,2,"Custos de mão-de-obra",{"v":100,"d":"R$ 100.00"},{"$f":"IFERROR(ItemsdeOferta[[#This Row],[Custo]]*ItemsdeOferta[[#This Row],[Qtd.]], \"\")","v":{"v":200,"d":"R$ 200.00"}},{"$f":"_xlfn.RANK.EQ(ItemsdeOferta[[#This Row],[Total]],ItemsdeOferta[Total])","v":1}]
[{"$nulls":3},"Subtotal",{"$f":"SUBTOTAL(109,ItemsdeOferta[Total])","v":{"v":443.18999999999994,"d":"R$ 443.19"}}]
[{"$nulls":3},"Alíquota de imposto",{"v":0.075,"d":"7.50%"}]
[{"$nulls":3},"Imposto",{"$f":"IFERROR(AlíquotaDeImposto*ItemsdeOferta[[#Totals],[Total]], \"\")","v":{"v":33.23924999999999,"d":"R$ 33.24"}}]
[{"$nulls":3},"Total Geral",{"$f":"IFERROR(Imposto+ItemsdeOferta[[#Totals],[Total]], \"\")","v":{"v":476.4292499999999,"d":"R$ 476.43"}}]

{"sheet":"Resumo dos custos de ofertas","index":3,"n_rows":3,"n_cols":4,"rows_kept":3,"merged":[[1,1,1,2],[2,1,2,2]]}
[null,"Resumo dos custos das ofertas"]
[null,"Detalhamento de materiais e custos",null,"Anotações"]
[null,"Gráfico mostrando os 5 maiores custos por material. Os dados são baseados em na tabela de itens de oferta da planilha de divisão de custos",null,"Insira as anotações nesta célula."]